bitfinex-derivatives/quotes_BTCF0:USTF0_20251111
["timestamp","ask_amount","ask_price","bid_price","bid_amount"]
[1762838981643,0.002,105530.0,105520.0,0.72272755]
[1762838983951,0.002,105530.0,105520.0,0.95964755]
[1762838984540,0.002,105530.0,105520.0,0.72272755]
[1762838989053,0.002,105530.0,105520.0,0.81734566]
[1762838989252,0.04338245,105540.0,105530.0,0.05875]
[1762838989449,0.04558048,105540.0,105530.0,0.35610238]
[1762838989647,0.04558048,105540.0,105530.0,0.24610238]
[1762838990448,0.04558048,105540.0,105530.0,0.59089588]
[1762838990953,0.00234048,105540.0,105530.0,0.59089588]
[1762838991254,0.00014245,105540.0,105530.0,0.73319997]
[1762838992549,0.00014245,105540.0,105530.0,0.92163145]
[1762838992756,0.00014245,105540.0,105530.0,0.82795526]
[1762838992954,0.00014245,105540.0,105530.0,1.06483526]
[1762838993155,0.00014245,105540.0,105530.0,0.82795526]
[1762838993355,0.00014245,105540.0,105530.0,1.06483526]
[1762838993658,0.00014245,105540.0,105530.0,0.82795526]
[1762838993856,0.00023684,105550.0,105540.0,0.1539945]
[1762838994153,0.00023684,105550.0,105540.0,1.84548036]
[1762838994456,0.04477684,105550.0,105540.0,1.94023565]
[1762838994653,0.04697487,105550.0,105540.0,1.70177496]
[1762838994848,0.04697487,105550.0,105540.0,1.79655946]
[1762838995451,0.04697487,105550.0,105540.0,1.79855946]
[1762838995653,0.00243487,105550.0,105540.0,1.79855946]
[1762838995952,0.00023684,105550.0,105540.0,1.89223565]
[1762838999457,0.20169629,105590.0,105580.0,0.0461]
[1762838999458,0.05632,105590.0,105580.0,0.0461]
[1762838999663,0.05851803,105590.0,105580.0,0.23345238]
[1762839000154,0.04523803,105590.0,105580.0,0.24628238]
[1762839000455,0.05786803,105590.0,105580.0,0.13977619]
[1762839000660,0.15260763,105590.0,105580.0,0.13977619]
[1762839001056,0.15260763,105590.0,105570.0,0.13991864]
[1762839001057,0.1504186,105580.0,105570.0,0.13991864]
[1762839001256,0.05786803,105580.0,105570.0,0.13991864]
[1762839001650,0.15261663,105580.0,105570.0,0.13991864]
[1762839002152,0.05786803,105580.0,105570.0,0.13991864]
[1762839002358,0.05886803,105580.0,105570.0,0.13991864]
[1762839002558,0.15361663,105580.0,105570.0,0.13991864]
[1762839002757,0.15361663,105580.0,105570.0,0.15438947]
[1762839003055,0.05886803,105580.0,105570.0,0.15438947]
[1762839003455,0.15361663,105580.0,105570.0,0.15438947]
[1762839004055,0.15361663,105580.0,105570.0,0.22991844]
[1762839004459,0.15361663,105580.0,105570.0,0.13624225]
[1762839004666,0.05886803,105580.0,105570.0,0.22991844]
[1762839004862,0.15361663,105580.0,105570.0,0.22991844]
[1762839005963,0.15361663,105580.0,105570.0,0.13624225]
[1762839006156,0.24729282,105580.0,105570.0,0.01461328]
[1762839006668,0.05567,105570.0,105560.0,0.13977619]
[1762839006864,0.15262563,105570.0,105560.0,0.13977619]
[1762839008062,0.15262563,105570.0,105560.0,0.14077619]
[1762839008265,0.05786803,105570.0,105560.0,0.30936655]
[1762839008765,0.05786803,105570.0,105560.0,0.30836655]
[1762839008969,0.05886803,105570.0,105560.0,0.40313305]
[1762839009359,0.05886803,105570.0,105560.0,0.30836655]
[1762839009765,0.05886803,105570.0,105560.0,0.32136906]
[1762839010160,0.15362563,105570.0,105560.0,0.32136906]
[1762839012765,0.24730182,105570.0,105560.0,0.01400251]
[1762839012967,0.1504366,105560.0,105550.0,0.11696864]
[1762839013269,0.24631082,105560.0,105550.0,0.1539647]
[1762839013466,0.15263463,105560.0,105550.0,0.1539647]
[1762839014167,0.24631082,105560.0,105550.0,0.1559647]
[1762839015256,0.15263463,105560.0,105550.0,0.1559647]
[1762839018170,0.24631082,105560.0,105550.0,0.1559647]
[1762839019063,0.15263463,105560.0,105550.0,0.1559647]
[1762839019258,0.05786803,105560.0,105550.0,0.1559647]
[1762839019463,0.15263463,105560.0,105550.0,0.1559647]
[1762839021372,0.04737803,105560.0,105550.0,0.25687089]
[1762839021572,0.04737803,105560.0,105550.0,0.36687089]
[1762839021869,0.00219803,105560.0,105550.0,0.35164639]
[1762839022167,0.04737803,105560.0,105550.0,0.63064639]
[1762839022366,0.00319803,105560.0,105550.0,0.63064639]
[1762839022566,0.00319803,105560.0,105550.0,0.62964639]
[1762839022763,0.04837803,105560.0,105550.0,0.25487089]
[1762839023076,0.15647463,105560.0,105550.0,0.1611947]
[1762839023371,0.06170803,105560.0,105550.0,0.25487089]
[1762839023572,0.04837803,105560.0,105550.0,0.25487089]
[1762839024372,0.04837803,105560.0,105550.0,0.38487089]
[1762839024567,0.02592803,105560.0,105550.0,0.61964639]
[1762839024871,0.04837803,105560.0,105550.0,0.61964639]
[1762839025168,0.00319803,105560.0,105550.0,0.61964639]
[1762839025374,0.02592803,105560.0,105550.0,0.61964639]
[1762839025578,0.001,105560.0,105550.0,0.76208083]
[1762839026971,0.05795245,105580.0,105570.0,0.04364]
[1762839027178,0.06015048,105580.0,105570.0,0.15014619]
[1762839027677,0.04752048,105580.0,105570.0,0.15014619]
[1762839028067,0.15559908,105580.0,105570.0,0.13731619]
[1762839028667,0.24927527,105580.0,105570.0,0.13731619]
[1762839029170,0.24927527,105580.0,105570.0,0.02152]
[1762839029374,0.1532676,105570.0,105560.0,0.13731619]
[1762839029675,0.15546563,105570.0,105560.0,0.13731619]
[1762839030669,0.15546563,105570.0,105560.0,0.13831619]
[1762839030878,0.15546563,105570.0,105560.0,0.23199238]
[1762839031573,0.15546563,105570.0,105560.0,0.23299238]
[1762839031874,0.06070803,105570.0,105560.0,0.13931619]
[1762839032176,0.15546563,105570.0,105560.0,0.13931619]
[1762839033573,0.24914182,105570.0,105560.0,0.13931619]
[1762839034775,0.24914182,105570.0,105560.0,0.13831619]
[1762839035172,0.24914182,105570.0,105560.0,0.13731619]
[1762839035575,0.06070803,105570.0,105560.0,0.13731619]
[1762839035779,0.15546563,105570.0,105560.0,0.13731619]
[1762839037684,0.24914182,105570.0,105560.0,0.09367619]
[1762839037990,0.24914182,105570.0,105560.0,0.13731619]
[1762839038784,0.1532766,105560.0,105550.0,0.1515047]
[1762839038985,0.15547463,105560.0,105550.0,0.1515047]
[1762839039186,0.06070803,105560.0,105550.0,0.3889952]
[1762839039876,0.06070803,105560.0,105550.0,0.3899952]
[1762839041069,0.06070803,105560.0,105550.0,0.3909952]
[1762839041477,0.06070803,105560.0,105550.0,0.3947252]
[1762839041681,0.15547463,105560.0,105550.0,0.2962196]
[1762839042382,0.06070803,105560.0,105550.0,0.2962196]
[1762839043486,0.15547463,105560.0,105550.0,0.2962196]
[1762839044984,0.24915082,105560.0,105550.0,0.1535047]
[1762839045388,0.15547463,105560.0,105550.0,0.1535047]
[1762839046288,0.06070803,105560.0,105550.0,0.1535047]
[1762839047079,0.02492803,105560.0,105550.0,0.3820103]
[1762839047278,0.00219803,105560.0,105550.0,0.1572347]
[1762839047479,0.14214463,105560.0,105550.0,0.1572347]
[1762839048286,0.15547463,105560.0,105550.0,0.1535047]
[1762839048486,0.24915082,105560.0,105550.0,0.1535047]
[1762839048691,0.15547463,105560.0,105550.0,0.1535047]
[1762839048884,0.15547463,105560.0,105550.0,0.1534846]
[1762839054391,0.06070803,105560.0,105550.0,0.2482602]
[1762839054582,0.15547463,105560.0,105550.0,0.1534846]
[1762839056685,0.15547463,105560.0,105550.0,0.05982851]
[1762839056885,0.15547463,105560.0,105550.0,0.1534846]
[1762839057085,0.15547463,105560.0,105550.0,0.05982851]
[1762839057382,0.15547463,105560.0,105550.0,0.1534846]
[1762839061485,0.24913072,105560.0,105550.0,0.01618851]
[1762839061685,0.24913072,105560.0,105550.0,0.00214245]
[1762839062689,0.24913072,105560.0,105550.0,0.00114245]
[1762839062893,0.25213072,105560.0,105550.0,0.00114245]
[1762839063596,0.25413072,105560.0,105550.0,0.00014245]
[1762839064089,0.06570803,105560.0,105550.0,0.24791414]
[1762839064297,0.16047473,105560.0,105550.0,0.04550245]
[1762839064492,0.16047473,105560.0,105550.0,0.14027805]
[1762839065193,0.06570803,105560.0,105550.0,0.14027805]
[1762839065391,0.25113082,105560.0,105550.0,0.00014245]
[1762839065595,0.1517256,105550.0,105540.0,0.1188448]
[1762839065898,0.1517346,105540.0,105530.0,0.1642048]
[1762839066094,0.24758872,105540.0,105530.0,0.04536]
[1762839066397,0.15393263,105540.0,105530.0,0.04536]
[1762839067096,0.15493263,105540.0,105530.0,0.04536]
[1762839067694,0.24858872,105540.0,105530.0,0.04536]
[1762839073098,0.24858872,105540.0,105530.0,0.02247]
[1762839073298,0.1517437,105530.0,105520.0,0.05981548]
[1762839073595,0.15394173,105530.0,105520.0,0.2017114]
[1762839074103,0.15394173,105530.0,105520.0,0.39017009]
[1762839074988,0.15394173,105530.0,105520.0,0.2017114]
[1762839075290,0.15394173,105530.0,105520.0,0.2027114]
[1762839075601,0.15394173,105530.0,105520.0,0.29736749]
[1762839077400,0.15394173,105530.0,105520.0,0.2037114]
[1762839078202,0.15394173,105530.0,105520.0,0.2027114]
[1762839078390,0.15494173,105530.0,105520.0,0.2027114]
[1762839078795,0.15494173,105530.0,105520.0,0.2017114]
[1762839079907,0.24859782,105530.0,105520.0,0.05981548]
[1762839080105,0.24859782,105530.0,105520.0,0.00014245]
[1762839080502,0.1532817,105510.0,105500.0,0.17332176]
[1762839080808,0.15547973,105510.0,105500.0,0.05447696]
[1762839081198,0.15547973,105510.0,105500.0,0.0691988]
[1762839081394,0.15547973,105510.0,105500.0,0.16285489]
[1762839081599,0.04714803,105510.0,105500.0,0.25767559]
[1762839081800,0.14195973,105510.0,105500.0,0.25967559]
[1762839082205,0.14195973,105510.0,105500.0,0.26067559]
[1762839082401,0.14195973,105510.0,105500.0,0.33617882]
[1762839082597,0.14195973,105510.0,105500.0,0.24135812]
[1762839082796,0.15547973,105510.0,105500.0,0.13671203]
[1762839083007,0.24913582,105510.0,105500.0,0.0612088]
[1762839085312,0.15547973,105510.0,105500.0,0.0612088]
[1762839085510,0.24913582,105510.0,105500.0,0.0612088]
[1762839086402,0.15547973,105510.0,105500.0,0.0612088]
[1762839086807,0.24913582,105510.0,105500.0,0.0612088]
[1762839087600,0.34279191,105510.0,105500.0,0.0179588]
[1762839088005,0.34279191,105510.0,105500.0,0.00182367]
[1762839088202,0.1532907,105500.0,105490.0,1e-08]
[1762839088406,0.24914482,105500.0,105490.0,1e-08]
[1762839089219,0.24914482,105500.0,105490.0,0.0148183]
[1762839089422,0.24914482,105500.0,105490.0,0.0168183]
[1762839090719,0.24914482,105500.0,105490.0,0.0198183]
[1762839090913,0.24914482,105500.0,105490.0,0.0411983]
[1762839091110,0.24914482,105500.0,105490.0,0.0630683]
[1762839091519,0.04714803,105500.0,105490.0,0.26548409]
[1762839091720,0.14196873,105500.0,105490.0,0.26548409]
[1762839091908,0.15548873,105500.0,105490.0,0.0630683]
[1762839092113,0.15548873,105500.0,105490.0,0.15672439]
[1762839092527,0.15548873,105500.0,105490.0,0.25155409]
[1762839092822,0.15548873,105500.0,105490.0,0.26548409]
[1762839093320,0.15548873,105500.0,105490.0,0.17065439]
[1762839093528,0.15548873,105500.0,105490.0,0.26548409]
[1762839093923,0.04714803,105500.0,105490.0,0.26548409]
[1762839094119,0.14196873,105500.0,105490.0,0.17065439]
[1762839094920,0.15548873,105500.0,105490.0,0.17065439]
[1762839096025,0.14196873,105500.0,105490.0,0.17065439]
[1762839096823,0.02384803,105500.0,105490.0,0.26548409]
[1762839097025,0.00219803,105500.0,105490.0,0.53548409]
[1762839098914,0.09701893,105500.0,105490.0,0.17065439]
[1762839099116,0.11866893,105500.0,105490.0,0.17065439]
[1762839099624,0.14196893,105500.0,105490.0,0.17065439]
[1762839100117,0.04714803,105500.0,105490.0,0.26548429]
[1762839100325,0.04714803,105500.0,105490.0,0.39548429]
[1762839100527,0.00219803,105500.0,105490.0,0.39548429]
[1762839100716,0.00219803,105500.0,105490.0,0.56548429]
[1762839101721,0.15342235,105520.0,105510.0,0.1519919]
[1762839101930,0.15562038,105520.0,105510.0,0.15083609]
[1762839104527,0.14210038,105520.0,105510.0,0.15083609]
[1762839104824,0.14209338,105520.0,105510.0,0.15083609]
[1762839105425,0.04729048,105520.0,105510.0,0.24564799]
[1762839106231,0.00234048,105520.0,105510.0,0.49564799]
[1762839106527,0.00219804,105520.0,105510.0,0.33930408]
[1762839106727,0.00219804,105520.0,105510.0,0.44930408]
[1762839106926,0.00219804,105520.0,105510.0,0.35564799]
[1762839107921,0.02384804,105520.0,105510.0,0.15083609]
[1762839108230,0.02384804,105520.0,105510.0,0.24564799]
[1762839108527,0.04714804,105520.0,105510.0,0.24564799]
[1762839109028,0.04714804,105520.0,105510.0,0.32024161]
[1762839110920,0.04714804,105520.0,105510.0,0.32030002]
[1762839111121,0.00219804,105520.0,105510.0,0.32030002]
[1762839111628,0.02405804,105520.0,105510.0,0.41401452]
[1762839111828,0.02405804,105520.0,105510.0,0.32030002]
[1762839114131,0.00219804,105520.0,105510.0,0.32030002]
[1762839114332,0.02405804,105520.0,105510.0,0.32030002]
[1762839114831,0.04534804,105520.0,105510.0,0.41401452]
[1762839115230,0.04534804,105520.0,105510.0,0.41701452]
[1762839116029,0.02405804,105520.0,105510.0,0.41701452]
[1762839116527,0.02405804,105520.0,105510.0,0.53701452]
[1762839118230,0.1517494,105550.0,105540.0,0.0443]
[1762839118436,0.15285639,105550.0,105540.0,0.1398382]
[1762839119035,0.24657089,105550.0,105540.0,0.1398382]
[1762839119433,0.24857089,105550.0,105540.0,0.0461237]
[1762839119737,0.24857089,105550.0,105540.0,0.1398382]
[1762839120432,0.24957089,105550.0,105540.0,0.1398382]
[1762839121122,0.1518147,105540.0,105530.0,0.02202245]
[1762839121325,0.34035069,105540.0,105530.0,0.00014245]
[1762839121530,0.34035069,105540.0,105530.0,0.00196615]
[1762839121924,0.34035069,105540.0,105530.0,0.00014245]
[1762839122435,0.1518327,105520.0,105510.0,0.0443]
[1762839122636,0.24665419,105520.0,105510.0,0.0461237]
[1762839124134,0.24665419,105520.0,105510.0,0.0481237]
[1762839124437,0.24665419,105520.0,105510.0,0.0511237]
[1762839124630,0.24665419,105520.0,105510.0,0.0491237]
[1762839124831,0.24665419,105520.0,105510.0,0.1428382]
[1762839125035,0.24665419,105520.0,105510.0,0.2376499]
[1762839125238,0.15293969,105520.0,105510.0,0.1398382]
[1762839125536,0.24665419,105520.0,105510.0,0.0461237]
[1762839125738,0.24665419,105520.0,105510.0,0.1398382]
[1762839125940,0.24665419,105520.0,105510.0,0.2346499]
[1762839126730,0.24665419,105520.0,105510.0,0.1398382]
[1762839127137,0.24665419,105520.0,105510.0,0.0461237]
[1762839127942,0.24665419,105520.0,105510.0,0.1398382]
[1762839129748,0.34036869,105520.0,105510.0,0.0018237]
[1762839130350,0.1518416,105510.0,105500.0,0.92914245]
[1762839130542,0.24666309,105510.0,105500.0,0.93096615]
[1762839131750,0.24666309,105510.0,105500.0,0.00396615]
[1762839131941,0.24666309,105510.0,105500.0,0.00496615]
[1762839133047,0.34037759,105510.0,105500.0,0.00314245]
[1762839133242,0.1518506,105500.0,105490.0,0.01481829]
[1762839133442,0.1518596,105490.0,105480.0,8.67e-05]
[1762839133748,0.24668109,105490.0,105480.0,0.01491103]
[1762839134252,0.24668109,105490.0,105480.0,8.67e-05]
[1762839134456,0.1518686,105480.0,105470.0,0.00014245]
[1762839134754,0.34040459,105480.0,105470.0,0.00014245]
[1762839135554,0.34049129,105480.0,105470.0,0.00014245]
[1762839136545,0.34149129,105480.0,105470.0,0.00014245]
[1762839137048,0.34349129,105480.0,105470.0,0.00014245]
[1762839137450,0.34349129,105480.0,105470.0,2.45e-06]
[1762839137653,0.1518866,105460.0,105450.0,0.97361707]
[1762839137843,0.24670809,105460.0,105450.0,0.93114077]
[1762839138347,0.24670809,105460.0,105450.0,0.95302077]
[1762839139638,0.15299359,105460.0,105450.0,0.97644077]
[1762839139953,0.34042259,105460.0,105450.0,0.99199848]
[1762839140254,0.34042259,105460.0,105450.0,1.08686398]
[1762839140448,0.04455699,105460.0,105450.0,1.30366848]
[1762839140647,0.04455699,105460.0,105450.0,1.19366848]
[1762839141942,0.05742699,105460.0,105450.0,1.19366848]
[1762839142649,0.05742699,105460.0,105450.0,1.31366848]
[1762839142953,0.05742699,105460.0,105450.0,1.19366848]
[1762839143145,0.04455699,105460.0,105450.0,1.19366848]
[1762839144054,0.04573245,105470.0,105460.0,0.1520866]
[1762839144352,0.00014245,105470.0,105460.0,0.6213393]
[1762839144544,2.45e-06,105470.0,105460.0,0.85672119]
[1762839144744,2.45e-06,105470.0,105460.0,0.76300669]
[1762839144940,8.67e-05,105480.0,105470.0,0.1435876]
[1762839145147,8.67e-05,105480.0,105470.0,0.6028403]
[1762839145348,8.67e-05,105480.0,105470.0,0.1442782]
[1762839145551,8.67e-05,105480.0,105470.0,0.2391258]
[1762839146461,0.0010867,105480.0,105470.0,0.2391258]
[1762839146759,0.04778369,105480.0,105470.0,0.2391258]
[1762839146950,0.00219369,105480.0,105470.0,0.23333646]
[1762839147256,0.00419369,105480.0,105470.0,0.30858053]
[1762839147556,0.00419369,105480.0,105470.0,0.23333646]
[1762839148056,0.09903229,105480.0,105470.0,0.23333646]
[1762839148260,0.12169229,105480.0,105470.0,0.23333646]
[1762839148560,0.14462229,105480.0,105470.0,0.13848886]
[1762839149757,0.14462229,105480.0,105470.0,0.21504528]
[1762839151257,0.15749229,105480.0,105470.0,0.12712012]
[1762839151456,0.15749229,105480.0,105470.0,0.0459637]
[1762839153359,0.15749229,105480.0,105470.0,0.0018237]
[1762839153861,0.15749229,105480.0,105470.0,0.0459637]
[1762839156164,0.04978369,105480.0,105470.0,0.23345646]
[1762839156363,0.06265369,105480.0,105470.0,0.1455313]
[1762839158052,0.04978369,105480.0,105470.0,0.23345646]
[1762839158254,0.00419369,105480.0,105470.0,0.60991433]
[1762839159159,0.00419369,105480.0,105470.0,0.30991433]
[1762839159363,0.14462229,105480.0,105470.0,0.30991433]
[1762839159663,0.04978369,105480.0,105470.0,0.30991433]
[1762839160163,0.15749229,105480.0,105470.0,0.12242157]
[1762839160664,0.15749229,105480.0,105470.0,0.0459637]
[1762839162460,0.15749229,105480.0,105470.0,0.12089675]
[1762839162650,0.15749229,105480.0,105470.0,0.0459637]
[1762839165952,0.24541745,105480.0,105470.0,0.0018237]
[1762839166268,0.1533076,105470.0,105460.0,0.04428245]
[1762839166464,0.15441459,105470.0,105460.0,0.00196615]
[1762839166652,0.15441459,105470.0,105460.0,0.02406615]
[1762839166857,0.15441459,105470.0,105460.0,0.00196615]
[1762839167258,0.24233975,105470.0,105460.0,0.00014245]
[1762839168461,0.15441459,105470.0,105460.0,0.00014245]
[1762839168659,0.24233975,105470.0,105460.0,0.00196615]
[1762839168860,0.24824911,105470.0,105460.0,0.00196615]
[1762839169461,0.24824911,105470.0,105460.0,0.04665615]
[1762839169969,0.24824911,105470.0,105460.0,0.00014245]
[1762839170160,0.24824911,105470.0,105460.0,0.00196615]
[1762839170365,0.24824911,105470.0,105460.0,0.02357615]
[1762839170970,0.2482538,105470.0,105460.0,0.02357615]
[1762839171170,0.2482538,105470.0,105460.0,0.00196615]
[1762839173764,0.15441459,105470.0,105460.0,0.02357615]
[1762839173970,0.2482538,105470.0,105460.0,0.02357615]
[1762839175066,0.2482538,105470.0,105460.0,0.00196615]
[1762839175267,0.2482538,105470.0,105460.0,0.00014245]
[1762839175676,0.2482538,105470.0,105460.0,0.00196615]
[1762839176774,0.2482538,105470.0,105460.0,0.00014245]
[1762839180876,0.2482538,105470.0,105450.0,0.00023707]
[1762839180877,0.1521566,105460.0,105450.0,0.00023707]
[1762839181079,0.2471028,105460.0,105450.0,0.00023707]
[1762839181376,0.1388836,105430.0,105420.0,1.25018763]
[1762839181569,0.15329059,105430.0,105420.0,1.25201133]
[1762839181777,0.00110699,105430.0,105420.0,1.51233102]
[1762839181977,0.13999059,105430.0,105420.0,1.27521102]
[1762839182169,0.15329059,105430.0,105420.0,1.18031842]
[1762839182479,0.15329059,105430.0,105420.0,1.03827393]
[1762839182673,0.15329059,105430.0,105420.0,1.02518393]
[1762839182880,0.15329059,105430.0,105420.0,0.99389988]
[1762839183678,0.2472165,105430.0,105420.0,0.99389988]
[1762839183871,0.15437729,105430.0,105420.0,1.09379248]
[1762839184574,0.15437729,105430.0,105420.0,1.18763169]
[1762839184778,0.02430369,105430.0,105420.0,1.33102169]
[1762839184975,0.00219369,105430.0,105420.0,1.51102169]
[1762839186284,0.00219369,105430.0,105420.0,1.20102169]
[1762839186888,0.02430369,105430.0,105420.0,1.20102169]
[1762839187373,0.02430369,105430.0,105420.0,1.50102169]
[1762839187573,0.0010867,105430.0,105420.0,1.5948609]
[1762839188380,0.0959703,105430.0,105420.0,1.2948609]
[1762839188784,0.0959703,105430.0,105420.0,1.20102169]
[1762839189179,0.09707729,105430.0,105420.0,1.20102169]
[1762839189896,0.09707729,105430.0,105420.0,1.10718248]
[1762839190075,0.09707729,105430.0,105420.0,1.20102169]
[1762839190276,0.14107729,105430.0,105420.0,1.01228988]
[1762839190480,0.14107729,105430.0,105420.0,1.10612909]
[1762839191090,0.14107729,105430.0,105420.0,1.01228988]
[1762839191288,0.11918729,105430.0,105420.0,1.31102159]
[1762839191479,0.11918719,105430.0,105420.0,1.20102159]
[1762839191678,0.00219369,105430.0,105420.0,1.33102159]
[1762839191979,0.11918719,105430.0,105420.0,1.20102159]
[1762839192380,0.14107719,105430.0,105420.0,1.10612909]
[1762839192687,0.14107719,105430.0,105420.0,1.34102159]
[1762839192887,0.11918719,105430.0,105420.0,1.34102159]
[1762839193486,0.00219369,105430.0,105420.0,1.34102159]
[1762839194389,0.14107709,105430.0,105420.0,1.10612909]
[1762839195483,0.14107709,105430.0,105420.0,1.20102149]
[1762839195683,0.02430369,105430.0,105420.0,1.31102149]
[1762839196087,0.02430369,105430.0,105420.0,1.20102149]
[1762839196688,0.14107709,105430.0,105420.0,1.20102149]
[1762839197994,0.14107709,105430.0,105420.0,1.10612909]
[1762839198197,0.15437709,105430.0,105420.0,1.09323909]
[1762839198392,0.15437709,105430.0,105420.0,0.99939988]
[1762839200483,0.2482163,105430.0,105420.0,0.06999988]
[1762839201891,0.2472163,105430.0,105420.0,0.06199988]
[1762839202192,0.2472163,105430.0,105420.0,0.06399988]
[1762839202399,0.15337709,105430.0,105420.0,0.06399988]
[1762839202899,0.2472163,105430.0,105420.0,0.06399988]
[1762839205397,0.15337709,105430.0,105420.0,0.06399988]
[1762839208799,0.2472163,105430.0,105420.0,0.15889238]
[1762839209000,0.15337709,105430.0,105420.0,0.15889238]
[1762839209194,0.15337709,105430.0,105420.0,0.06399988]
[1762839211602,0.15337709,105430.0,105420.0,0.55612149]
[1762839211603,0.02330369,105430.0,105420.0,0.55612149]
[1762839211906,0.13951709,105430.0,105420.0,0.17122909]
[1762839212700,0.15324709,105430.0,105420.0,0.06399988]
[1762839212900,0.15324709,105430.0,105420.0,0.15783909]
[1762839214211,0.15324709,105430.0,105420.0,0.17131909]
[1762839215210,0.15324709,105430.0,105420.0,0.06399988]
[1762839215510,0.15324709,105430.0,105420.0,0.15783909]
[1762839218014,0.15324709,105430.0,105420.0,0.06399988]
[1762839218214,0.15324709,105430.0,105420.0,0.15783909]
[1762839218516,0.2470863,105430.0,105420.0,0.01894988]
[1762839220004,0.2470863,105430.0,105420.0,0.00362102]
[1762839220204,0.1520624,105420.0,105410.0,9.497e-05]
[1762839220409,0.2470086,105420.0,105410.0,9.497e-05]
[1762839220616,0.2470086,105420.0,105410.0,0.03584946]
[1762839220819,0.2470086,105420.0,105410.0,0.02188497]
[1762839221716,0.2470086,105420.0,105410.0,0.03599592]
[1762839221915,0.15316939,105420.0,105410.0,0.06107962]
[1762839222215,0.2470086,105420.0,105410.0,0.06107962]
[1762839225312,0.2470086,105420.0,105410.0,0.03781962]
[1762839225813,0.15316939,105420.0,105410.0,0.03781962]
[1762839226014,0.2470086,105420.0,105410.0,0.03781962]
[1762839228022,0.2470086,105420.0,105410.0,0.02370867]
[1762839228219,0.2470086,105420.0,105410.0,0.00191867]
[1762839228719,0.2470086,105420.0,105410.0,9.497e-05]
[1762839229619,0.2470086,105420.0,105410.0,0.02188497]
[1762839231621,0.2470086,105420.0,105410.0,9.497e-05]
[1762839231919,0.2470086,105420.0,105410.0,0.02200497]
[1762839232121,0.2470086,105420.0,105410.0,0.04610867]
[1762839232922,0.34104099,105420.0,105410.0,0.04610867]
[1762839233311,0.15316939,105420.0,105410.0,0.14101007]
[1762839233625,0.34104099,105420.0,105410.0,0.14101007]
[1762839234822,0.24710519,105420.0,105410.0,0.24815587]
[1762839235321,0.24710519,105420.0,105410.0,0.23494587]
[1762839236619,0.05827699,105420.0,105410.0,0.24843587]
[1762839236825,0.15221279,105420.0,105410.0,0.24843587]
[1762839237125,0.24710519,105420.0,105410.0,0.24843587]
[1762839237525,0.24710519,105420.0,105410.0,0.14004447]
[1762839238122,0.24710519,105420.0,105410.0,0.04610867]
[1762839238428,0.34104099,105420.0,105410.0,0.00191867]
[1762839238830,0.24710519,105420.0,105410.0,0.04669867]
[1762839239023,0.24710519,105420.0,105410.0,0.14160007]
[1762839240239,0.24710519,105420.0,105410.0,0.24902587]
[1762839240528,0.02214699,105420.0,105410.0,0.24902587]
[1762839240829,0.13808939,105420.0,105410.0,0.27393487]
[1762839241030,0.13808939,105420.0,105410.0,0.36787067]
[1762839241221,0.04319699,105420.0,105410.0,0.58393487]
[1762839241421,0.00110699,105420.0,105410.0,0.61787067]
[1762839241822,0.11703939,105420.0,105410.0,0.36787067]
[1762839242130,0.13808939,105420.0,105410.0,0.27296927]
[1762839242630,0.24545519,105420.0,105410.0,0.26047927]
[1762839242831,0.24545519,105420.0,105410.0,0.15512447]
[1762839243127,0.24545519,105420.0,105410.0,0.14263447]
[1762839243837,0.24545519,105420.0,105410.0,0.14163447]
[1762839244131,0.59645519,105420.0,105410.0,0.14063447]
[1762839244632,0.59645519,105420.0,105410.0,0.04669867]
[1762839244833,0.59645519,105420.0,105410.0,0.14063447]
[1762839245036,0.59645519,105420.0,105410.0,0.15412447]
[1762839245226,0.50251939,105420.0,105410.0,0.15412447]
[1762839245432,0.50251939,105420.0,105410.0,0.17903347]
[1762839245636,0.50251939,105420.0,105410.0,0.27296927]
[1762839247636,0.50251939,105420.0,105410.0,0.17903347]
[1762839247838,0.50251939,105420.0,105410.0,0.16554347]
[1762839248037,0.50251939,105420.0,105410.0,0.25947927]
[1762839248235,0.50251939,105420.0,105410.0,0.16554347]
[1762839248442,0.59645519,105420.0,105410.0,0.25947927]
[1762839249540,0.59645519,105420.0,105410.0,0.14063447]
[1762839249840,0.59645519,105420.0,105410.0,0.02458867]
[1762839250039,0.59645519,105420.0,105410.0,0.04669867]
[1762839251844,0.59645519,105420.0,105410.0,0.14063447]
[1762839252936,0.59645519,105420.0,105410.0,0.04669867]
[1762839254348,0.69039099,105420.0,105410.0,0.00191867]
[1762839254548,0.1504214,105410.0,105400.0,0.058501]
[1762839254845,0.55546419,105410.0,105400.0,0.013721]
[1762839255047,0.1504304,105400.0,105390.0,0.1387158]
[1762839255247,0.59547319,105400.0,105390.0,0.0466037]
[1762839255547,0.59547319,105400.0,105390.0,0.17869398]
[1762839255548,0.595592,105400.0,105390.0,0.17869398]
[1762839256044,0.6895278,105400.0,105390.0,0.01324548]
[1762839256241,0.1504394,105390.0,105380.0,0.2575606]
[1762839256436,0.57548219,105390.0,105380.0,0.2593843]
[1762839256743,0.57548219,105390.0,105380.0,0.248958]
[1762839256744,0.48154639,105390.0,105380.0,0.248958]
[1762839257049,0.48154639,105390.0,105380.0,0.1672413]
[1762839257345,0.1504485,105380.0,105370.0,0.1188448]
[1762839257539,0.1504575,105370.0,105360.0,0.04488248]
[1762839257741,0.57550029,105370.0,105360.0,0.04488248]
[1762839258247,0.57561458,105370.0,105360.0,0.05777777]
[1762839258447,0.1494955,105350.0,105340.0,0.1636248]
[1762839258650,0.41564699,105350.0,105340.0,0.1789385]
[1762839258844,0.38214699,105350.0,105340.0,0.2479653]
[1762839259043,0.38214699,105350.0,105340.0,0.1681155]
[1762839259250,0.40319699,105350.0,105340.0,0.073151]
[1762839259548,0.40324699,105350.0,105340.0,0.073151]
[1762839259748,0.40324699,105350.0,105340.0,0.1681155]
[1762839259955,0.36110699,105350.0,105340.0,0.7133071]
[1762839260248,0.36110699,105350.0,105340.0,0.2660226]
[1762839260445,0.40510699,105350.0,105340.0,0.2660226]
[1762839262253,0.50006249,105350.0,105340.0,0.2660226]
[1762839262453,0.36110699,105350.0,105340.0,0.5009871]
[1762839262850,0.36110699,105350.0,105340.0,0.3609871]
[1762839263047,0.36110699,105350.0,105340.0,0.1731155]
[1762839263249,0.36110699,105350.0,105340.0,0.4709871]
[1762839263555,0.36110699,105350.0,105340.0,0.8883071]
[1762839263755,0.36110699,105350.0,105340.0,0.6509871]
[1762839264450,0.36110699,105350.0,105340.0,0.9822429]
[1762839264655,0.36,105350.0,105340.0,1.12407675]
[1762839265045,0.36,105350.0,105340.0,0.88675675]
[1762839265451,0.36,105350.0,105340.0,1.12407675]
[1762839265649,0.00014245,105360.0,105350.0,0.1026555]
[1762839265853,0.32124944,105360.0,105350.0,0.488415]
[1762839266155,0.32124944,105360.0,105350.0,0.86823848]
[1762839266752,0.37787944,105360.0,105350.0,0.24702268]
[1762839267057,0.37787944,105360.0,105350.0,0.43489428]
[1762839267254,0.37787944,105360.0,105350.0,0.70589428]
[1762839267563,0.32124944,105360.0,105350.0,0.94317428]
[1762839267748,0.32124944,105360.0,105350.0,0.94417428]
[1762839267948,0.32014245,105360.0,105350.0,1.03811008]
[1762839268150,0.32014245,105360.0,105350.0,0.94417428]